{"text_format":"1","workbook":"xlsx","n_sheets":1,"sheets":["gegevens"],"not_rendered":{"charts":0,"images":0,"macros":1,"external_links":0,"defined_names":4,"comments":0,"pivot_tables":0},"unopened":[],"bounds":{"document_bytes":16777216,"sheet_cells":100000,"rows_first":2000,"rows_last":500,"rows_between":2000,"halvings":0,"cell_chars":16384,"cell_head_chars":4096},"cells_cut":0,"cells_raw":0,"read":"whole","date_system":"1900"}

{"sheet":"gegevens","index":0,"n_rows":20,"n_cols":23,"rows_kept":20,"cut":false,"hidden":false,"merged":[[1,0,1,1],[3,0,3,1],[3,2,3,5],[3,6,3,22]]}
[]
[2016]
[]
["datum",null,"leveranciers",null,null,null,"uren en kosten"]
["wk ","Q","naam","materieelsoort","type","liters per uur"," datum maandag","hoeveelheid maandag","datum dinsdag","hoeveelheid dinsdag","datum woensdag","hoeveelheid woensdag","datum donderdag","hoeveelheid donderdag","datum vrijdag","hoeveelheid vrijdag","datum zaterdag","hoeveelheid zaterdag","totaal maandag t/m zaterdag","eenheid ","prijs eenheid","bedrag","opmerking"]
[5,{"$f":"IF(Tabel1[[#This Row],[wk ]]=0,\" \",IF(Tabel1[[#This Row],[wk ]]<14,1,IF(Tabel1[[#This Row],[wk ]]<25,2,IF(Tabel1[[#This Row],[wk ]]<40,3,IF(Tabel1[[#This Row],[wk ]]>39,4)))))","v":1},"Argro","Rups graafmachine",345,46,{"$f":"+IF(Tabel1[[#This Row],[wk ]]>0,(7*Tabel1[[#This Row],[wk ]])+$A$1,\" \")","v":"1900-02-04"},8,{"$f":"+IF(Tabel1[[#This Row],[wk ]]>0,Tabel1[[#This Row],[ datum maandag]]+1,\" \")","v":"1900-02-05"},null,{"$f":"+IF(Tabel1[[#This Row],[wk ]]>0,Tabel1[[#This Row],[datum dinsdag]]+1,\" \")","v":"1900-02-06"},null,{"$f":"+IF(Tabel1[[#This Row],[wk ]]>0,Tabel1[[#This Row],[datum woensdag]]+1,\" \")","v":"1900-02-07"},null,{"$f":"+IF(Tabel1[[#This Row],[wk ]]>0,Tabel1[[#This Row],[datum donderdag]]+1,\" \")","v":"1900-02-08"},null,{"$f":"+IF(Tabel1[[#This Row],[wk ]]>0,Tabel1[[#This Row],[datum vrijdag]]+1,\" \")","v":"1900-02-09"},null,{"$f":"+Tabel1[[#This Row],[hoeveelheid maandag]]+Tabel1[[#This Row],[hoeveelheid dinsdag]]+Tabel1[[#This Row],[hoeveelheid woensdag]]+Tabel1[[#This Row],[hoeveelheid donderdag]]+Tabel1[[#This Row],[hoeveelheid vrijdag]]+Tabel1[[#This Row],[hoeveelheid zaterdag]]","v":8},"uur",82,{"$f":"+Tabel1[[#This Row],[totaal maandag t/m zaterdag]]*Tabel1[[#This Row],[prijs eenheid]]","v":656}]
[26,{"$f":"IF(Tabel1[[#This Row],[wk ]]=0,\" \",IF(Tabel1[[#This Row],[wk ]]<14,1,IF(Tabel1[[#This Row],[wk ]]<25,2,IF(Tabel1[[#This Row],[wk ]]<40,3,IF(Tabel1[[#This Row],[wk ]]>39,4)))))","v":3},"Colpaart","Shovels","L110 E Peter",16,{"$f":"+IF(Tabel1[[#This Row],[wk ]]>0,(7*Tabel1[[#This Row],[wk ]])+$A$1,\" \")","v":"1900-06-30"},40,{"$f":"+IF(Tabel1[[#This Row],[wk ]]>0,Tabel1[[#This Row],[ datum maandag]]+1,\" \")","v":"1900-07-01"},null,{"$f":"+IF(Tabel1[[#This Row],[wk ]]>0,Tabel1[[#This Row],[datum dinsdag]]+1,\" \")","v":"1900-07-02"},null,{"$f":"+IF(Tabel1[[#This Row],[wk ]]>0,Tabel1[[#This Row],[datum woensdag]]+1,\" \")","v":"1900-07-03"},null,{"$f":"+IF(Tabel1[[#This Row],[wk ]]>0,Tabel1[[#This Row],[datum donderdag]]+1,\" \")","v":"1900-07-04"},null,{"$f":"+IF(Tabel1[[#This Row],[wk ]]>0,Tabel1[[#This Row],[datum vrijdag]]+1,\" \")","v":"1900-07-05"},null,{"$f":"+Tabel1[[#This Row],[hoeveelheid maandag]]+Tabel1[[#This Row],[hoeveelheid dinsdag]]+Tabel1[[#This Row],[hoeveelheid woensdag]]+Tabel1[[#This Row],[hoeveelheid donderdag]]+Tabel1[[#This Row],[hoeveelheid vrijdag]]+Tabel1[[#This Row],[hoeveelheid zaterdag]]","v":40},"uur",60,{"$f":"+Tabel1[[#This Row],[totaal maandag t/m zaterdag]]*Tabel1[[#This Row],[prijs eenheid]]","v":2400}]
[26,{"$f":"IF(Tabel1[[#This Row],[wk ]]=0,\" \",IF(Tabel1[[#This Row],[wk ]]<14,1,IF(Tabel1[[#This Row],[wk ]]<25,2,IF(Tabel1[[#This Row],[wk ]]<40,3,IF(Tabel1[[#This Row],[wk ]]>39,4)))))","v":3},"Colpaart","Shovels","L110 E Peter",16,{"$f":"+IF(Tabel1[[#This Row],[wk ]]>0,(7*Tabel1[[#This Row],[wk ]])+$A$1,\" \")","v":"1900-06-30"},40,{"$f":"+IF(Tabel1[[#This Row],[wk ]]>0,Tabel1[[#This Row],[ datum maandag]]+1,\" \")","v":"1900-07-01"},null,{"$f":"+IF(Tabel1[[#This Row],[wk ]]>0,Tabel1[[#This Row],[datum dinsdag]]+1,\" \")","v":"1900-07-02"},null,{"$f":"+IF(Tabel1[[#This Row],[wk ]]>0,Tabel1[[#This Row],[datum woensdag]]+1,\" \")","v":"1900-07-03"},null,{"$f":"+IF(Tabel1[[#This Row],[wk ]]>0,Tabel1[[#This Row],[datum donderdag]]+1,\" \")","v":"1900-07-04"},null,{"$f":"+IF(Tabel1[[#This Row],[wk ]]>0,Tabel1[[#This Row],[datum vrijdag]]+1,\" \")","v":"1900-07-05"},null,{"$f":"+Tabel1[[#This Row],[hoeveelheid maandag]]+Tabel1[[#This Row],[hoeveelheid dinsdag]]+Tabel1[[#This Row],[hoeveelheid woensdag]]+Tabel1[[#This Row],[hoeveelheid donderdag]]+Tabel1[[#This Row],[hoeveelheid vrijdag]]+Tabel1[[#This Row],[hoeveelheid zaterdag]]","v":40},"uur",60,{"$f":"+Tabel1[[#This Row],[totaal maandag t/m zaterdag]]*Tabel1[[#This Row],[prijs eenheid]]","v":2400}]
[26,{"$f":"IF(Tabel1[[#This Row],[wk ]]=0,\" \",IF(Tabel1[[#This Row],[wk ]]<14,1,IF(Tabel1[[#This Row],[wk ]]<25,2,IF(Tabel1[[#This Row],[wk ]]<40,3,IF(Tabel1[[#This Row],[wk ]]>39,4)))))","v":3},"Colpaart","Shovels","L110 E Peter",16,{"$f":"+IF(Tabel1[[#This Row],[wk ]]>0,(7*Tabel1[[#This Row],[wk ]])+$A$1,\" \")","v":"1900-06-30"},40,{"$f":"+IF(Tabel1[[#This Row],[wk ]]>0,Tabel1[[#This Row],[ datum maandag]]+1,\" \")","v":"1900-07-01"},null,{"$f":"+IF(Tabel1[[#This Row],[wk ]]>0,Tabel1[[#This Row],[datum dinsdag]]+1,\" \")","v":"1900-07-02"},null,{"$f":"+IF(Tabel1[[#This Row],[wk ]]>0,Tabel1[[#This Row],[datum woensdag]]+1,\" \")","v":"1900-07-03"},null,{"$f":"+IF(Tabel1[[#This Row],[wk ]]>0,Tabel1[[#This Row],[datum donderdag]]+1,\" \")","v":"1900-07-04"},null,{"$f":"+IF(Tabel1[[#This Row],[wk ]]>0,Tabel1[[#This Row],[datum vrijdag]]+1,\" \")","v":"1900-07-05"},null,{"$f":"+Tabel1[[#This Row],[hoeveelheid maandag]]+Tabel1[[#This Row],[hoeveelheid dinsdag]]+Tabel1[[#This Row],[hoeveelheid woensdag]]+Tabel1[[#This Row],[hoeveelheid donderdag]]+Tabel1[[#This Row],[hoeveelheid vrijdag]]+Tabel1[[#This Row],[hoeveelheid zaterdag]]","v":40},"uur",60,{"$f":"+Tabel1[[#This Row],[totaal maandag t/m zaterdag]]*Tabel1[[#This Row],[prijs eenheid]]","v":2400}]
[26,{"$f":"IF(Tabel1[[#This Row],[wk ]]=0,\" \",IF(Tabel1[[#This Row],[wk ]]<14,1,IF(Tabel1[[#This Row],[wk ]]<25,2,IF(Tabel1[[#This Row],[wk ]]<40,3,IF(Tabel1[[#This Row],[wk ]]>39,4)))))","v":3},"Colpaart","Shovels","L110 E Peter",16,{"$f":"+IF(Tabel1[[#This Row],[wk ]]>0,(7*Tabel1[[#This Row],[wk ]])+$A$1,\" \")","v":"1900-06-30"},40,{"$f":"+IF(Tabel1[[#This Row],[wk ]]>0,Tabel1[[#This Row],[ datum maandag]]+1,\" \")","v":"1900-07-01"},null,{"$f":"+IF(Tabel1[[#This Row],[wk ]]>0,Tabel1[[#This Row],[datum dinsdag]]+1,\" \")","v":"1900-07-02"},null,{"$f":"+IF(Tabel1[[#This Row],[wk ]]>0,Tabel1[[#This Row],[datum woensdag]]+1,\" \")","v":"1900-07-03"},null,{"$f":"+IF(Tabel1[[#This Row],[wk ]]>0,Tabel1[[#This Row],[datum donderdag]]+1,\" \")","v":"1900-07-04"},null,{"$f":"+IF(Tabel1[[#This Row],[wk ]]>0,Tabel1[[#This Row],[datum vrijdag]]+1,\" \")","v":"1900-07-05"},null,{"$f":"+Tabel1[[#This Row],[hoeveelheid maandag]]+Tabel1[[#This Row],[hoeveelheid dinsdag]]+Tabel1[[#This Row],[hoeveelheid woensdag]]+Tabel1[[#This Row],[hoeveelheid donderdag]]+Tabel1[[#This Row],[hoeveelheid vrijdag]]+Tabel1[[#This Row],[hoeveelheid zaterdag]]","v":40},"uur",60,{"$f":"+Tabel1[[#This Row],[totaal maandag t/m zaterdag]]*Tabel1[[#This Row],[prijs eenheid]]","v":2400}]
[26,{"$f":"IF(Tabel1[[#This Row],[wk ]]=0,\" \",IF(Tabel1[[#This Row],[wk ]]<14,1,IF(Tabel1[[#This Row],[wk ]]<25,2,IF(Tabel1[[#This Row],[wk ]]<40,3,IF(Tabel1[[#This Row],[wk ]]>39,4)))))","v":3},"Colpaart","Shovels","L110 E Peter",16,{"$f":"+IF(Tabel1[[#This Row],[wk ]]>0,(7*Tabel1[[#This Row],[wk ]])+$A$1,\" \")","v":"1900-06-30"},40,{"$f":"+IF(Tabel1[[#This Row],[wk ]]>0,Tabel1[[#This Row],[ datum maandag]]+1,\" \")","v":"1900-07-01"},null,{"$f":"+IF(Tabel1[[#This Row],[wk ]]>0,Tabel1[[#This Row],[datum dinsdag]]+1,\" \")","v":"1900-07-02"},null,{"$f":"+IF(Tabel1[[#This Row],[wk ]]>0,Tabel1[[#This Row],[datum woensdag]]+1,\" \")","v":"1900-07-03"},null,{"$f":"+IF(Tabel1[[#This Row],[wk ]]>0,Tabel1[[#This Row],[datum donderdag]]+1,\" \")","v":"1900-07-04"},null,{"$f":"+IF(Tabel1[[#This Row],[wk ]]>0,Tabel1[[#This Row],[datum vrijdag]]+1,\" \")","v":"1900-07-05"},null,{"$f":"+Tabel1[[#This Row],[hoeveelheid maandag]]+Tabel1[[#This Row],[hoeveelheid dinsdag]]+Tabel1[[#This Row],[hoeveelheid woensdag]]+Tabel1[[#This Row],[hoeveelheid donderdag]]+Tabel1[[#This Row],[hoeveelheid vrijdag]]+Tabel1[[#This Row],[hoeveelheid zaterdag]]","v":40},"uur",60,{"$f":"+Tabel1[[#This Row],[totaal maandag t/m zaterdag]]*Tabel1[[#This Row],[prijs eenheid]]","v":2400}]
[26,{"$f":"IF(Tabel1[[#This Row],[wk ]]=0,\" \",IF(Tabel1[[#This Row],[wk ]]<14,1,IF(Tabel1[[#This Row],[wk ]]<25,2,IF(Tabel1[[#This Row],[wk ]]<40,3,IF(Tabel1[[#This Row],[wk ]]>39,4)))))","v":3},"Colpaart","Shovels","L110 E Peter",16,{"$f":"+IF(Tabel1[[#This Row],[wk ]]>0,(7*Tabel1[[#This Row],[wk ]])+$A$1,\" \")","v":"1900-06-30"},40,{"$f":"+IF(Tabel1[[#This Row],[wk ]]>0,Tabel1[[#This Row],[ datum maandag]]+1,\" \")","v":"1900-07-01"},null,{"$f":"+IF(Tabel1[[#This Row],[wk ]]>0,Tabel1[[#This Row],[datum dinsdag]]+1,\" \")","v":"1900-07-02"},null,{"$f":"+IF(Tabel1[[#This Row],[wk ]]>0,Tabel1[[#This Row],[datum woensdag]]+1,\" \")","v":"1900-07-03"},null,{"$f":"+IF(Tabel1[[#This Row],[wk ]]>0,Tabel1[[#This Row],[datum donderdag]]+1,\" \")","v":"1900-07-04"},null,{"$f":"+IF(Tabel1[[#This Row],[wk ]]>0,Tabel1[[#This Row],[datum vrijdag]]+1,\" \")","v":"1900-07-05"},null,{"$f":"+Tabel1[[#This Row],[hoeveelheid maandag]]+Tabel1[[#This Row],[hoeveelheid dinsdag]]+Tabel1[[#This Row],[hoeveelheid woensdag]]+Tabel1[[#This Row],[hoeveelheid donderdag]]+Tabel1[[#This Row],[hoeveelheid vrijdag]]+Tabel1[[#This Row],[hoeveelheid zaterdag]]","v":40},"uur",60,{"$f":"+Tabel1[[#This Row],[totaal maandag t/m zaterdag]]*Tabel1[[#This Row],[prijs eenheid]]","v":2400}]
[null,{"$f":"IF(Tabel1[[#This Row],[wk ]]=0,\" \",IF(Tabel1[[#This Row],[wk ]]<14,1,IF(Tabel1[[#This Row],[wk ]]<25,2,IF(Tabel1[[#This Row],[wk ]]<40,3,IF(Tabel1[[#This Row],[wk ]]>39,4)))))","v":" "},null,null,null,null,{"$f":"+IF(Tabel1[[#This Row],[wk ]]>0,(7*Tabel1[[#This Row],[wk ]])+$A$1,\" \")","v":" "},null,{"$f":"+IF(Tabel1[[#This Row],[wk ]]>0,Tabel1[[#This Row],[ datum maandag]]+1,\" \")","v":" "},null,{"$f":"+IF(Tabel1[[#This Row],[wk ]]>0,Tabel1[[#This Row],[datum dinsdag]]+1,\" \")","v":" "},null,{"$f":"+IF(Tabel1[[#This Row],[wk ]]>0,Tabel1[[#This Row],[datum woensdag]]+1,\" \")","v":" "},null,{"$f":"+IF(Tabel1[[#This Row],[wk ]]>0,Tabel1[[#This Row],[datum donderdag]]+1,\" \")","v":" "},null,{"$f":"+IF(Tabel1[[#This Row],[wk ]]>0,Tabel1[[#This Row],[datum vrijdag]]+1,\" \")","v":" "},null,{"$f":"+Tabel1[[#This Row],[hoeveelheid maandag]]+Tabel1[[#This Row],[hoeveelheid dinsdag]]+Tabel1[[#This Row],[hoeveelheid woensdag]]+Tabel1[[#This Row],[hoeveelheid donderdag]]+Tabel1[[#This Row],[hoeveelheid vrijdag]]+Tabel1[[#This Row],[hoeveelheid zaterdag]]","v":0},null,null,{"$f":"+Tabel1[[#This Row],[totaal maandag t/m zaterdag]]*Tabel1[[#This Row],[prijs eenheid]]","v":0}]
[null,{"$f":"IF(Tabel1[[#This Row],[wk ]]=0,\" \",IF(Tabel1[[#This Row],[wk ]]<14,1,IF(Tabel1[[#This Row],[wk ]]<25,2,IF(Tabel1[[#This Row],[wk ]]<40,3,IF(Tabel1[[#This Row],[wk ]]>39,4)))))","v":" "},null,null,null,null,{"$f":"+IF(Tabel1[[#This Row],[wk ]]>0,(7*Tabel1[[#This Row],[wk ]])+$A$1,\" \")","v":" "},null,{"$f":"+IF(Tabel1[[#This Row],[wk ]]>0,Tabel1[[#This Row],[ datum maandag]]+1,\" \")","v":" "},null,{"$f":"+IF(Tabel1[[#This Row],[wk ]]>0,Tabel1[[#This Row],[datum dinsdag]]+1,\" \")","v":" "},null,{"$f":"+IF(Tabel1[[#This Row],[wk ]]>0,Tabel1[[#This Row],[datum woensdag]]+1,\" \")","v":" "},null,{"$f":"+IF(Tabel1[[#This Row],[wk ]]>0,Tabel1[[#This Row],[datum donderdag]]+1,\" \")","v":" "},null,{"$f":"+IF(Tabel1[[#This Row],[wk ]]>0,Tabel1[[#This Row],[datum vrijdag]]+1,\" \")","v":" "},null,{"$f":"+Tabel1[[#This Row],[hoeveelheid maandag]]+Tabel1[[#This Row],[hoeveelheid dinsdag]]+Tabel1[[#This Row],[hoeveelheid woensdag]]+Tabel1[[#This Row],[hoeveelheid donderdag]]+Tabel1[[#This Row],[hoeveelheid vrijdag]]+Tabel1[[#This Row],[hoeveelheid zaterdag]]","v":0},null,null,{"$f":"+Tabel1[[#This Row],[totaal maandag t/m zaterdag]]*Tabel1[[#This Row],[prijs eenheid]]","v":0}]
[null,{"$f":"IF(Tabel1[[#This Row],[wk ]]=0,\" \",IF(Tabel1[[#This Row],[wk ]]<14,1,IF(Tabel1[[#This Row],[wk ]]<25,2,IF(Tabel1[[#This Row],[wk ]]<40,3,IF(Tabel1[[#This Row],[wk ]]>39,4)))))","v":" "},null,null,null,null,{"$f":"+IF(Tabel1[[#This Row],[wk ]]>0,(7*Tabel1[[#This Row],[wk ]])+$A$1,\" \")","v":" "},null,{"$f":"+IF(Tabel1[[#This Row],[wk ]]>0,Tabel1[[#This Row],[ datum maandag]]+1,\" \")","v":" "},null,{"$f":"+IF(Tabel1[[#This Row],[wk ]]>0,Tabel1[[#This Row],[datum dinsdag]]+1,\" \")","v":" "},null,{"$f":"+IF(Tabel1[[#This Row],[wk ]]>0,Tabel1[[#This Row],[datum woensdag]]+1,\" \")","v":" "},null,{"$f":"+IF(Tabel1[[#This Row],[wk ]]>0,Tabel1[[#This Row],[datum donderdag]]+1,\" \")","v":" "},null,{"$f":"+IF(Tabel1[[#This Row],[wk ]]>0,Tabel1[[#This Row],[datum vrijdag]]+1,\" \")","v":" "},null,{"$f":"+Tabel1[[#This Row],[hoeveelheid maandag]]+Tabel1[[#This Row],[hoeveelheid dinsdag]]+Tabel1[[#This Row],[hoeveelheid woensdag]]+Tabel1[[#This Row],[hoeveelheid donderdag]]+Tabel1[[#This Row],[hoeveelheid vrijdag]]+Tabel1[[#This Row],[hoeveelheid zaterdag]]","v":0},null,null,{"$f":"+Tabel1[[#This Row],[totaal maandag t/m zaterdag]]*Tabel1[[#This Row],[prijs eenheid]]","v":0}]
[null,{"$f":"IF(Tabel1[[#This Row],[wk ]]=0,\" \",IF(Tabel1[[#This Row],[wk ]]<14,1,IF(Tabel1[[#This Row],[wk ]]<25,2,IF(Tabel1[[#This Row],[wk ]]<40,3,IF(Tabel1[[#This Row],[wk ]]>39,4)))))","v":" "},null,null,null,null,{"$f":"+IF(Tabel1[[#This Row],[wk ]]>0,(7*Tabel1[[#This Row],[wk ]])+$A$1,\" \")","v":" "},null,{"$f":"+IF(Tabel1[[#This Row],[wk ]]>0,Tabel1[[#This Row],[ datum maandag]]+1,\" \")","v":" "},null,{"$f":"+IF(Tabel1[[#This Row],[wk ]]>0,Tabel1[[#This Row],[datum dinsdag]]+1,\" \")","v":" "},null,{"$f":"+IF(Tabel1[[#This Row],[wk ]]>0,Tabel1[[#This Row],[datum woensdag]]+1,\" \")","v":" "},null,{"$f":"+IF(Tabel1[[#This Row],[wk ]]>0,Tabel1[[#This Row],[datum donderdag]]+1,\" \")","v":" "},null,{"$f":"+IF(Tabel1[[#This Row],[wk ]]>0,Tabel1[[#This Row],[datum vrijdag]]+1,\" \")","v":" "},null,{"$f":"+Tabel1[[#This Row],[hoeveelheid maandag]]+Tabel1[[#This Row],[hoeveelheid dinsdag]]+Tabel1[[#This Row],[hoeveelheid woensdag]]+Tabel1[[#This Row],[hoeveelheid donderdag]]+Tabel1[[#This Row],[hoeveelheid vrijdag]]+Tabel1[[#This Row],[hoeveelheid zaterdag]]","v":0},null,null,{"$f":"+Tabel1[[#This Row],[totaal maandag t/m zaterdag]]*Tabel1[[#This Row],[prijs eenheid]]","v":0}]
[null,{"$f":"IF(Tabel1[[#This Row],[wk ]]=0,\" \",IF(Tabel1[[#This Row],[wk ]]<14,1,IF(Tabel1[[#This Row],[wk ]]<25,2,IF(Tabel1[[#This Row],[wk ]]<40,3,IF(Tabel1[[#This Row],[wk ]]>39,4)))))","v":" "},null,null,null,null,{"$f":"+IF(Tabel1[[#This Row],[wk ]]>0,(7*Tabel1[[#This Row],[wk ]])+$A$1,\" \")","v":" "},null,{"$f":"+IF(Tabel1[[#This Row],[wk ]]>0,Tabel1[[#This Row],[ datum maandag]]+1,\" \")","v":" "},null,{"$f":"+IF(Tabel1[[#This Row],[wk ]]>0,Tabel1[[#This Row],[datum dinsdag]]+1,\" \")","v":" "},null,{"$f":"+IF(Tabel1[[#This Row],[wk ]]>0,Tabel1[[#This Row],[datum woensdag]]+1,\" \")","v":" "},null,{"$f":"+IF(Tabel1[[#This Row],[wk ]]>0,Tabel1[[#This Row],[datum donderdag]]+1,\" \")","v":" "},null,{"$f":"+IF(Tabel1[[#This Row],[wk ]]>0,Tabel1[[#This Row],[datum vrijdag]]+1,\" \")","v":" "},null,{"$f":"+Tabel1[[#This Row],[hoeveelheid maandag]]+Tabel1[[#This Row],[hoeveelheid dinsdag]]+Tabel1[[#This Row],[hoeveelheid woensdag]]+Tabel1[[#This Row],[hoeveelheid donderdag]]+Tabel1[[#This Row],[hoeveelheid vrijdag]]+Tabel1[[#This Row],[hoeveelheid zaterdag]]","v":0},null,null,{"$f":"+Tabel1[[#This Row],[totaal maandag t/m zaterdag]]*Tabel1[[#This Row],[prijs eenheid]]","v":0}]
[null,{"$f":"IF(Tabel1[[#This Row],[wk ]]=0,\" \",IF(Tabel1[[#This Row],[wk ]]<14,1,IF(Tabel1[[#This Row],[wk ]]<25,2,IF(Tabel1[[#This Row],[wk ]]<40,3,IF(Tabel1[[#This Row],[wk ]]>39,4)))))","v":" "},null,null,null,null,{"$f":"+IF(Tabel1[[#This Row],[wk ]]>0,(7*Tabel1[[#This Row],[wk ]])+$A$1,\" \")","v":" "},null,{"$f":"+IF(Tabel1[[#This Row],[wk ]]>0,Tabel1[[#This Row],[ datum maandag]]+1,\" \")","v":" "},null,{"$f":"+IF(Tabel1[[#This Row],[wk ]]>0,Tabel1[[#This Row],[datum dinsdag]]+1,\" \")","v":" "},null,{"$f":"+IF(Tabel1[[#This Row],[wk ]]>0,Tabel1[[#This Row],[datum woensdag]]+1,\" \")","v":" "},null,{"$f":"+IF(Tabel1[[#This Row],[wk ]]>0,Tabel1[[#This Row],[datum donderdag]]+1,\" \")","v":" "},null,{"$f":"+IF(Tabel1[[#This Row],[wk ]]>0,Tabel1[[#This Row],[datum vrijdag]]+1,\" \")","v":" "},null,{"$f":"+Tabel1[[#This Row],[hoeveelheid maandag]]+Tabel1[[#This Row],[hoeveelheid dinsdag]]+Tabel1[[#This Row],[hoeveelheid woensdag]]+Tabel1[[#This Row],[hoeveelheid donderdag]]+Tabel1[[#This Row],[hoeveelheid vrijdag]]+Tabel1[[#This Row],[hoeveelheid zaterdag]]","v":0},null,null,{"$f":"+Tabel1[[#This Row],[totaal maandag t/m zaterdag]]*Tabel1[[#This Row],[prijs eenheid]]","v":0}]
[null,{"$f":"IF(Tabel1[[#This Row],[wk ]]=0,\" \",IF(Tabel1[[#This Row],[wk ]]<14,1,IF(Tabel1[[#This Row],[wk ]]<25,2,IF(Tabel1[[#This Row],[wk ]]<40,3,IF(Tabel1[[#This Row],[wk ]]>39,4)))))","v":" "},null,null,null,null,{"$f":"+IF(Tabel1[[#This Row],[wk ]]>0,(7*Tabel1[[#This Row],[wk ]])+$A$1,\" \")","v":" "},null,{"$f":"+IF(Tabel1[[#This Row],[wk ]]>0,Tabel1[[#This Row],[ datum maandag]]+1,\" \")","v":" "},null,{"$f":"+IF(Tabel1[[#This Row],[wk ]]>0,Tabel1[[#This Row],[datum dinsdag]]+1,\" \")","v":" "},null,{"$f":"+IF(Tabel1[[#This Row],[wk ]]>0,Tabel1[[#This Row],[datum woensdag]]+1,\" \")","v":" "},null,{"$f":"+IF(Tabel1[[#This Row],[wk ]]>0,Tabel1[[#This Row],[datum donderdag]]+1,\" \")","v":" "},null,{"$f":"+IF(Tabel1[[#This Row],[wk ]]>0,Tabel1[[#This Row],[datum vrijdag]]+1,\" \")","v":" "},null,{"$f":"+Tabel1[[#This Row],[hoeveelheid maandag]]+Tabel1[[#This Row],[hoeveelheid dinsdag]]+Tabel1[[#This Row],[hoeveelheid woensdag]]+Tabel1[[#This Row],[hoeveelheid donderdag]]+Tabel1[[#This Row],[hoeveelheid vrijdag]]+Tabel1[[#This Row],[hoeveelheid zaterdag]]","v":0},null,null,{"$f":"+Tabel1[[#This Row],[totaal maandag t/m zaterdag]]*Tabel1[[#This Row],[prijs eenheid]]","v":0}]
[null,null,null,null,null,null,null,{"$f":"SUBTOTAL(109,Tabel1[hoeveelheid maandag])","v":248},null,{"$f":"SUBTOTAL(109,Tabel1[hoeveelheid dinsdag])","v":0},null,{"$f":"SUBTOTAL(109,Tabel1[hoeveelheid woensdag])","v":0},null,{"$f":"SUBTOTAL(109,Tabel1[hoeveelheid donderdag])","v":0},null,{"$f":"SUBTOTAL(109,Tabel1[hoeveelheid vrijdag])","v":0},null,{"$f":"SUBTOTAL(109,Tabel1[hoeveelheid zaterdag])","v":0},{"$f":"SUBTOTAL(109,Tabel1[totaal maandag t/m zaterdag])","v":248},null,null,{"$f":"SUBTOTAL(109,V6:V19)","v":15056}]